[Event "Norwegian Championship 2022"]
[Site "Kongsvinger, Norway"]
[Date "2022.07.16"]
[Round "9"]
[White "Kaasen, Tor Fredrik"]
[Black "Elsness, Frode"]
[Result "1/2-1/2"]
[Board "3"]
[TimeControl "40/5400+30:1800+30"]
[WhiteTitle "IM"]
[BlackTitle "IM"]
[WhiteFideId "1516647"]
[BlackFideId "1501100"]
[WhiteElo "2433"]
[BlackElo "2464"]

1. e4 {[%clk 01:30:57]} {[%emt 00:00:02]} c5 {[%clk 01:22:01]} {[%emt
00:09:01]} 2. Nf3 {[%clk 01:31:12]} {[%emt 00:00:14]} Nc6 {[%clk 01:22:19]}
{[%emt 00:00:12]} 3. Bb5 {[%clk 01:31:33]} {[%emt 00:00:08]} e5 {[%clk
01:22:26]} {[%emt 00:00:24]} 4. O-O {[%clk 01:31:44]} {[%emt 00:00:17]} Bd6
{[%clk 01:22:16]} {[%emt 00:00:38]} 5. c3 {[%clk 01:32:09]} {[%emt 00:00:08]}
a6 {[%clk 01:22:17]} {[%emt 00:00:29]} 6. Ba4 {[%clk 01:32:34]} {[%emt
00:00:05]} b5 {[%clk 01:22:03]} {[%emt 00:00:44]} 7. Bc2 {[%clk 01:32:57]}
{[%emt 00:00:07]} Nge7 {[%clk 01:18:03]} {[%emt 00:04:30]} 8. d3 {[%clk
01:33:16]} {[%emt 00:00:11]} O-O {[%clk 01:15:47]} {[%emt 00:02:46]} 9. Be3
{[%clk 01:33:17]} {[%emt 00:00:29]} Ng6 {[%clk 01:15:22]} {[%emt 00:00:55]} 10.
a4 {[%clk 01:33:04]} {[%emt 00:00:44]} b4 {[%clk 01:14:22]} {[%emt 00:01:28]}
11. Nbd2 {[%clk 01:32:25]} {[%emt 00:01:09]} Be7 {[%clk 01:12:10]} {[%emt
00:02:42]} 12. h4 {[%clk 01:28:08]} {[%emt 00:04:47]} d6 {[%clk 01:09:35]}
{[%emt 00:03:05]} 13. h5 {[%clk 01:23:50]} {[%emt 00:04:48]} Nf4 {[%clk
01:09:11]} {[%emt 00:00:54]} 14. h6 {[%clk 01:21:36]} {[%emt 00:02:45]} gxh6
{[%clk 01:03:41]} {[%emt 00:06:00]} 15. g3 {[%clk 01:18:12]} {[%emt 00:03:55]}
Nh3+ {[%clk 00:59:36]} {[%emt 00:04:34]} 16. Kg2 {[%clk 01:15:08]} {[%emt
00:03:34]} Bg4 {[%clk 00:33:27]} {[%emt 00:26:40]} 17. Bxh6 {[%clk 01:11:06]}
{[%emt 00:04:32]} 1/2-1/2

[Event "Norwegian Championship 2022"]
[Site "Kongsvinger, Norway"]
[Date "2022.07.16"]
[Round "9"]
[White "Hauge, Lars Oskar"]
[Black "Stanford, Maxim Barth"]
[Result "1-0"]
[Board "4"]
[TimeControl "40/5400+30:1800+30"]
[WhiteTitle "GM"]
[BlackTitle "IM"]
[WhiteFideId "1509276"]
[BlackFideId "408280"]
[WhiteElo "2526"]
[BlackElo "2308"]

1. e4 {[%clk 01:30:58]} {[%emt 00:00:01]} c5 {[%clk 01:30:55]} {[%emt
00:00:05]} 2. Nf3 {[%clk 01:31:24]} {[%emt 00:00:04]} Nc6 {[%clk 01:31:20]}
{[%emt 00:00:05]} 3. Bc4 {[%clk 01:30:00]} {[%emt 00:01:54]} e6 {[%clk
01:31:05]} {[%emt 00:00:45]} 4. O-O {[%clk 01:26:37]} {[%emt 00:03:53]} a6
{[%clk 01:29:16]} {[%emt 00:02:20]} 5. d4 {[%clk 01:26:30]} {[%emt 00:00:37]}
cxd4 {[%clk 01:29:26]} {[%emt 00:00:20]} 6. Nxd4 {[%clk 01:26:48]} {[%emt
00:00:12]} Qc7 {[%clk 01:29:04]} {[%emt 00:00:51]} 7. Nxc6 {[%clk 01:27:13]}
{[%emt 00:00:05]} Qxc6 {[%clk 01:26:37]} {[%emt 00:02:57]} 8. Bd3 {[%clk
01:27:32]} {[%emt 00:00:12]} h5 {[%clk 01:24:57]} {[%emt 00:02:10]} 9. Qe2
{[%clk 01:19:22]} {[%emt 00:08:39]} Qc7 {[%clk 01:19:46]} {[%emt 00:05:42]} 10.
Nd2 {[%clk 01:08:14]} {[%emt 00:11:39]} Nf6 {[%clk 01:16:04]} {[%emt 00:04:11]}
11. h3 {[%clk 01:04:28]} {[%emt 00:04:16]} d6 {[%clk 01:14:02]} {[%emt
00:02:33]} 12. Nf3 {[%clk 00:58:43]} {[%emt 00:06:15]} e5 {[%clk 01:07:01]}
{[%emt 00:07:31]} 13. Ng5 {[%clk 00:53:36]} {[%emt 00:05:36]} Be7 {[%clk
01:07:21]} {[%emt 00:00:10]} 14. f4 {[%clk 00:52:55]} {[%emt 00:01:11]} Bd7
{[%clk 01:00:40]} {[%emt 00:07:10]} 15. c4 {[%clk 00:45:13]} {[%emt 00:08:12]}
O-O {[%clk 00:51:23]} {[%emt 00:09:47]} 16. b3 {[%clk 00:43:18]} {[%emt
00:02:26]} b5 {[%clk 00:48:57]} {[%emt 00:02:57]} 17. Be3 {[%clk 00:42:32]}
{[%emt 00:01:15]} Rab8 {[%clk 00:46:39]} {[%emt 00:02:47]} 18. Rac1 {[%clk
00:42:21]} {[%emt 00:00:42]} Qd8 {[%clk 00:45:01]} {[%emt 00:02:07]} 19. c5
{[%clk 00:41:42]} {[%emt 00:01:09]} dxc5 {[%clk 00:43:46]} {[%emt 00:01:45]} 20.
fxe5 {[%clk 00:37:48]} {[%emt 00:04:25]} Ng4 {[%clk 00:42:22]} {[%emt
00:01:53]} 21. hxg4 {[%clk 00:35:00]} {[%emt 00:03:18]} Bxg5 {[%clk 00:41:55]}
{[%emt 00:00:57]} 22. gxh5 {[%clk 00:28:53]} {[%emt 00:06:38]} Bg4 {[%clk
00:41:34]} {[%emt 00:00:50]} 23. Qd2 {[%clk 00:29:15]} {[%emt 00:00:08]} c4
{[%clk 00:34:25]} {[%emt 00:07:39]} 24. Bxg5 {[%clk 00:19:30]} {[%emt
00:10:15]} Qxd3 {[%clk 00:34:28]} {[%emt 00:00:28]} 25. h6 {[%clk 00:16:36]}
{[%emt 00:03:24]} Qxd2 {[%clk 00:29:48]} {[%emt 00:05:10]} 26. Bxd2 {[%clk
00:16:34]} {[%emt 00:00:31]} cxb3 {[%clk 00:28:47]} {[%emt 00:01:31]} 27. axb3
{[%clk 00:12:55]} {[%emt 00:04:08]} Rfc8 {[%clk 00:22:48]} {[%emt 00:06:29]} 28.
Ra1 {[%clk 00:06:15]} {[%emt 00:07:10]} Rb6 {[%clk 00:17:24]} {[%emt 00:05:53]}
29. hxg7 {[%clk 00:06:14]} {[%emt 00:00:32]} Kxg7 {[%clk 00:16:38]} {[%emt
00:01:16]} 30. Bg5 {[%clk 00:05:23]} {[%emt 00:01:21]} Rc2 {[%clk 00:15:43]}
{[%emt 00:01:25]} 31. Rf4 {[%clk 00:05:16]} {[%emt 00:00:37]} Be6 {[%clk
00:15:13]} {[%emt 00:01:00]} 32. Rf3 {[%clk 00:04:20]} {[%emt 00:01:27]} Rbc6
{[%clk 00:12:55]} {[%emt 00:02:48]} 33. Rg3 {[%clk 00:04:23]} {[%emt 00:00:27]}
Bc8 {[%clk 00:07:48]} {[%emt 00:05:37]} 34. Bf6+ {[%clk 00:03:19]} {[%emt
00:01:34]} Kf8 {[%clk 00:05:23]} {[%emt 00:02:55]} 35. Rd3 {[%clk 00:03:00]}
{[%emt 00:00:49]} Kg8 {[%clk 00:05:15]} {[%emt 00:00:37]} 36. Rg3+ {[%clk
00:03:22]} {[%emt 00:00:08]} Kf8 {[%clk 00:05:41]} {[%emt 00:00:04]} 37. Rd3
{[%clk 00:01:40]} {[%emt 00:02:11]} Kg8 {[%clk 00:06:07]} {[%emt 00:00:05]} 38.
Rd8+ {[%clk 00:02:02]} {[%emt 00:00:08]} Kh7 {[%clk 00:06:31]} {[%emt
00:00:05]} 39. Rh8+ {[%clk 00:02:25]} {[%emt 00:00:08]} Kg6 {[%clk 00:06:59]}
{[%emt 00:00:03]} 40. Rg8+ {[%clk 00:32:31]} {[%emt 00:00:23]} Kh6 {[%clk
00:36:43]} {[%emt 00:00:46]} 41. Rf1 {[%clk 00:28:50]} {[%emt 00:04:12]} Rc1
{[%clk 00:36:03]} {[%emt 00:01:10]} 42. g4 {[%clk 00:24:20]} {[%emt 00:04:59]}
Rxf1+ {[%clk 00:33:26]} {[%emt 00:03:07]} 43. Kxf1 {[%clk 00:24:30]} {[%emt
00:00:21]} Bb7 {[%clk 00:30:47]} {[%emt 00:03:09]} 44. Kf2 {[%clk 00:22:05]}
{[%emt 00:02:54]} Rc8 {[%clk 00:27:53]} {[%emt 00:03:25]} 45. Rg7 {[%clk
00:22:25]} {[%emt 00:00:10]} Bxe4 {[%clk 00:27:56]} {[%emt 00:00:28]} 46. Kg3
{[%clk 00:22:19]} {[%emt 00:00:36]} Rc1 {[%clk 00:24:46]} {[%emt 00:03:40]} 47.
Rxf7 {[%clk 00:22:00]} {[%emt 00:00:49]} Bd5 {[%clk 00:24:34]} {[%emt
00:00:42]} 48. Ra7 {[%clk 00:19:09]} {[%emt 00:03:20]} Rg1+ {[%clk 00:24:05]}
{[%emt 00:00:59]} 49. Kf4 {[%clk 00:18:14]} {[%emt 00:01:24]} Rf1+ {[%clk
00:24:19]} {[%emt 00:00:17]} 50. Ke3 {[%clk 00:17:57]} {[%emt 00:00:47]} Rf3+
{[%clk 00:23:07]} {[%emt 00:01:42]} 51. Kd4 {[%clk 00:17:53]} {[%emt 00:00:34]}
Bxb3 {[%clk 00:19:40]} {[%emt 00:03:58]} 52. Ke4 {[%clk 00:17:36]} {[%emt
00:00:46]} Rf1 {[%clk 00:19:51]} {[%emt 00:00:20]} 53. Rxa6 {[%clk 00:17:21]}
{[%emt 00:00:45]} Re1+ {[%clk 00:18:53]} {[%emt 00:01:27]} 54. Kf4 {[%clk
00:17:39]} {[%emt 00:00:13]} Rf1+ {[%clk 00:18:54]} {[%emt 00:00:29]} 55. Ke3
{[%clk 00:17:48]} {[%emt 00:00:20]} Kg6 {[%clk 00:17:07]} {[%emt 00:02:18]} 56.
Rb6 {[%clk 00:17:25]} {[%emt 00:00:53]} Bc4 {[%clk 00:17:20]} {[%emt 00:00:17]}
57. Bh4+ {[%clk 00:16:15]} {[%emt 00:01:39]} Kf7 {[%clk 00:17:23]} {[%emt
00:00:27]} 58. Bf2 {[%clk 00:14:43]} {[%emt 00:02:02]} Ra1 {[%clk 00:13:26]}
{[%emt 00:04:27]} 59. g5 {[%clk 00:13:58]} {[%emt 00:01:15]} Ra8 {[%clk
00:13:48]} {[%emt 00:00:08]} 60. Kf4 {[%clk 00:13:01]} {[%emt 00:01:27]} Re8
{[%clk 00:13:28]} {[%emt 00:00:50]} 61. Rf6+ {[%clk 00:09:29]} {[%emt
00:04:02]} Kg7 {[%clk 00:12:44]} {[%emt 00:01:14]} 62. g6 {[%clk 00:07:48]}
{[%emt 00:02:11]} Bd3 {[%clk 00:10:21]} {[%emt 00:02:52]} 63. Bd4 {[%clk
00:07:58]} {[%emt 00:00:21]} Bxg6 {[%clk 00:08:12]} {[%emt 00:02:39]} 64. Kg5
{[%clk 00:07:38]} {[%emt 00:00:51]} Bf7 {[%clk 00:05:49]} {[%emt 00:02:54]} 65.
e6 {[%clk 00:07:30]} {[%emt 00:00:38]} Bxe6 {[%clk 00:06:01]} {[%emt 00:00:18]}
66. Rxe6+ {[%clk 00:06:10]} {[%emt 00:01:50]} Kf7 {[%clk 00:06:26]} {[%emt
00:00:05]} 67. Rh6 {[%clk 00:05:34]} {[%emt 00:01:05]} Re1 {[%clk 00:06:08]}
{[%emt 00:00:48]} 68. Kf5 {[%clk 00:05:35]} {[%emt 00:00:29]} Rf1+ {[%clk
00:05:05]} {[%emt 00:01:33]} 69. Ke4 {[%clk 00:05:46]} {[%emt 00:00:19]} Re1+
{[%clk 00:05:20]} {[%emt 00:00:16]} 70. Kd5 {[%clk 00:06:07]} {[%emt 00:00:08]}
b4 {[%clk 00:05:05]} {[%emt 00:00:46]} 71. Rb6 {[%clk 00:06:28]} {[%emt
00:00:08]} Rb1 {[%clk 00:04:04]} {[%emt 00:01:31]} 72. Rb7+ {[%clk 00:06:51]}
{[%emt 00:00:07]} Kg6 {[%clk 00:04:22]} {[%emt 00:00:12]} 73. Ke6 {[%clk
00:06:44]} {[%emt 00:00:37]} Kg5 {[%clk 00:04:41]} {[%emt 00:00:11]} 74. Rg7+
{[%clk 00:06:06]} {[%emt 00:01:08]} Kf4 {[%clk 00:04:54]} {[%emt 00:00:17]} 75.
Kd5 {[%clk 00:06:29]} {[%emt 00:00:06]} Kf3 {[%clk 00:04:59]} {[%emt 00:00:25]}
76. Rf7+ {[%clk 00:06:11]} {[%emt 00:00:48]} Kg3 {[%clk 00:05:06]} {[%emt
00:00:24]} 77. Ke4 {[%clk 00:05:54]} {[%emt 00:00:47]} b3 {[%clk 00:02:20]}
{[%emt 00:03:16]} 78. Rg7+ {[%clk 00:06:13]} {[%emt 00:00:10]} Kh4 {[%clk
00:01:45]} {[%emt 00:01:05]} 79. Bf2 {[%clk 00:04:17]} {[%emt 00:02:25]} Kh5
{[%clk 00:02:01]} {[%emt 00:00:14]} 80. Rb7 {[%clk 00:03:19]} {[%emt 00:01:28]}
Kg6 {[%clk 00:01:19]} {[%emt 00:01:11]} 81. Kd3 {[%clk 00:03:19]} {[%emt
00:00:31]} Kf5 {[%clk 00:01:38]} {[%emt 00:00:10]} 82. Bd4 {[%clk 00:03:20]}
{[%emt 00:00:29]} Ke6 {[%clk 00:01:37]} {[%emt 00:00:31]} 83. Rh7 {[%clk
00:02:25]} {[%emt 00:01:26]} Kd5 {[%clk 00:01:45]} {[%emt 00:00:23]} 84. Rh5+
{[%clk 00:02:48]} {[%emt 00:00:06]} Ke6 {[%clk 00:02:10]} {[%emt 00:00:05]} 85.
Rh2 {[%clk 00:02:51]} {[%emt 00:00:26]} Kd5 {[%clk 00:02:27]} {[%emt 00:00:14]}
86. Bb2 {[%clk 00:03:12]} {[%emt 00:00:09]} Rf1 {[%clk 00:02:40]} {[%emt
00:00:17]} 87. Kc3 {[%clk 00:03:27]} {[%emt 00:00:15]} Rf3+ {[%clk 00:02:50]}
{[%emt 00:00:20]} 88. Kb4 {[%clk 00:02:49]} {[%emt 00:01:09]} Ke4 {[%clk
00:03:00]} {[%emt 00:00:19]} 89. Bc3 {[%clk 00:03:04]} {[%emt 00:00:16]} Rf8
{[%clk 00:02:59]} {[%emt 00:00:30]} 90. Kxb3 {[%clk 00:03:14]} {[%emt
00:00:21]} Rb8+ {[%clk 00:03:21]} {[%emt 00:00:09]} 91. Kc2 {[%clk 00:03:32]}
{[%emt 00:00:12]} Ra8 {[%clk 00:03:13]} {[%emt 00:00:37]} 92. Re2+ {[%clk
00:03:05]} {[%emt 00:00:57]} Kf3 {[%clk 00:03:18]} {[%emt 00:00:25]} 93. Re7
{[%clk 00:03:29]} {[%emt 00:00:05]} Rd8 {[%clk 00:03:36]} {[%emt 00:00:13]} 94.
Be5 {[%clk 00:02:59]} {[%emt 00:01:00]} Rd5 {[%clk 00:03:51]} {[%emt 00:00:14]}
95. Kc3 {[%clk 00:03:20]} {[%emt 00:00:09]} Rd1 {[%clk 00:03:48]} {[%emt
00:00:34]} 96. Bd4 {[%clk 00:03:07]} {[%emt 00:00:44]} Rc1+ {[%clk 00:03:12]}
{[%emt 00:01:06]} 97. Kd3 {[%clk 00:03:16]} {[%emt 00:00:20]} Rd1+ {[%clk
00:03:33]} {[%emt 00:00:09]} 98. Kc4 {[%clk 00:03:43]} {[%emt 00:00:04]} Rc1+
{[%clk 00:03:28]} {[%emt 00:00:36]} 99. Kd5 {[%clk 00:04:07]} {[%emt 00:00:05]}
Rc8 {[%clk 00:03:47]} {[%emt 00:00:11]} 100. Rf7+ {[%clk 00:04:15]} {[%emt
00:00:21]} Kg2 {[%clk 00:02:41]} {[%emt 00:01:36]} 101. Ke4 {[%clk 00:04:30]}
{[%emt 00:00:15]} Re8+ {[%clk 00:02:49]} {[%emt 00:00:21]} 102. Kf4 {[%clk
00:04:06]} {[%emt 00:00:55]} Rg8 {[%clk 00:03:06]} {[%emt 00:00:13]} 103. Rf5
{[%clk 00:03:02]} {[%emt 00:01:35]} Rg6 {[%clk 00:03:22]} {[%emt 00:00:14]} 104.
Ra5 {[%clk 00:02:24]} {[%emt 00:01:08]} Rg8 {[%clk 00:03:12]} {[%emt 00:00:40]}
105. Ra2+ {[%clk 00:02:05]} {[%emt 00:00:49]} Kh3 {[%clk 00:03:16]} {[%emt
00:00:26]} 106. Be5 {[%clk 00:02:09]} {[%emt 00:00:26]} Rf8+ {[%clk 00:02:55]}
{[%emt 00:00:51]} 107. Ke4 {[%clk 00:02:31]} {[%emt 00:00:08]} Rc8 {[%clk
00:02:09]} {[%emt 00:01:15]} 108. Kf3 {[%clk 00:01:39]} {[%emt 00:01:22]} Kh4
{[%clk 00:02:35]} {[%emt 00:00:04]} 109. Rg2 {[%clk 00:01:29]} {[%emt
00:00:40]} Kh5 {[%clk 00:02:37]} {[%emt 00:00:28]} 110. Kf4 {[%clk 00:01:14]}
{[%emt 00:00:44]} Rf8+ {[%clk 00:02:58]} {[%emt 00:00:10]} 111. Ke4 {[%clk
00:01:38]} {[%emt 00:00:06]} Rf7 {[%clk 00:02:08]} {[%emt 00:01:21]} 112. Rg1
{[%clk 00:01:43]} {[%emt 00:00:25]} Kh6 {[%clk 00:02:21]} {[%emt 00:00:17]} 113.
Bd4 {[%clk 00:01:13]} {[%emt 00:01:00]} Kh7 {[%clk 00:02:31]} {[%emt 00:00:20]}
114. Ke5 {[%clk 00:01:37]} {[%emt 00:00:06]} Rf3 {[%clk 00:02:20]} {[%emt
00:00:41]} 115. Ke6 {[%clk 00:01:30]} {[%emt 00:00:37]} Kh6 {[%clk 00:02:41]}
{[%emt 00:00:09]} 116. Be5 {[%clk 00:01:35]} {[%emt 00:00:25]} Kh5 {[%clk
00:02:41]} {[%emt 00:00:30]} 117. Bf6 {[%clk 00:01:42]} {[%emt 00:00:24]} Re3+
{[%clk 00:02:08]} {[%emt 00:01:03]} 118. Kf7 {[%clk 00:02:01]} {[%emt
00:00:11]} Rf3 {[%clk 00:02:01]} {[%emt 00:00:37]} 119. Rg8 {[%clk 00:01:59]}
{[%emt 00:00:32]} Rf5 {[%clk 00:01:02]} {[%emt 00:01:28]} 120. Rg3 {[%clk
00:02:25]} {[%emt 00:00:04]} Ra5 {[%clk 00:01:03]} {[%emt 00:00:29]} 121. Ke6
{[%clk 00:01:57]} {[%emt 00:00:58]} Rb5 {[%clk 00:01:04]} {[%emt 00:00:29]} 122.
Rg2 {[%clk 00:02:01]} {[%emt 00:00:26]} Ra5 {[%clk 00:01:14]} {[%emt 00:00:20]}
123. Be5 {[%clk 00:02:26]} {[%emt 00:00:05]} Kh6 {[%clk 00:00:36]} {[%emt
00:01:09]} 124. Kf5 {[%clk 00:01:55]} {[%emt 00:01:01]} Kh7 {[%clk 00:00:45]}
{[%emt 00:00:21]} 125. Rg7+ {[%clk 00:01:11]} {[%emt 00:01:14]} Kh6 {[%clk
00:01:14]} {[%emt 00:00:01]} 126. Rg8 {[%clk 00:00:44]} {[%emt 00:00:57]} Ra7
{[%clk 00:01:37]} {[%emt 00:00:07]} 127. Rg2 {[%clk 00:00:42]} {[%emt
00:00:31]} Rf7+ {[%clk 00:00:34]} {[%emt 00:01:33]} 128. Bf6 {[%clk 00:01:07]}
{[%emt 00:00:06]} 1-0

[Event "Norwegian Championship 2022"]
[Site "Kongsvinger, Norway"]
[Date "2022.07.16"]
[Round "9"]
[White "Tallaksen, Levi André"]
[Black "Østmoe, Geir Sune Tallaksen"]
[Result "1/2-1/2"]
[Board "5"]
[TimeControl "40/5400+30:1800+30"]
[WhiteTitle "FM"]
[BlackTitle "IM"]
[WhiteFideId "1505785"]
[BlackFideId "1502778"]
[WhiteElo "2341"]
[BlackElo "2483"]

1. d4 {[%clk 01:30:57]} {[%emt 00:00:02]} Nf6 {[%clk 01:30:45]} {[%emt
00:00:15]} 2. c4 {[%clk 01:31:19]} {[%emt 00:00:08]} e6 {[%clk 01:31:11]}
{[%emt 00:00:04]} 3. Nf3 {[%clk 01:31:41]} {[%emt 00:00:07]} d5 {[%clk
01:31:08]} {[%emt 00:00:34]} 4. Nc3 {[%clk 01:32:01]} {[%emt 00:00:10]} Bb4
{[%clk 01:31:28]} {[%emt 00:00:10]} 5. e3 {[%clk 01:31:55]} {[%emt 00:00:36]}
O-O {[%clk 01:31:03]} {[%emt 00:00:55]} 6. Bd3 {[%clk 01:31:48]} {[%emt
00:00:36]} b6 {[%clk 01:30:37]} {[%emt 00:00:58]} 7. O-O {[%clk 01:31:19]}
{[%emt 00:00:58]} Ba6 {[%clk 01:30:33]} {[%emt 00:00:34]} 8. Ne5 {[%clk
01:30:09]} {[%emt 00:01:40]} dxc4 {[%clk 01:16:02]} {[%emt 00:15:02]} 9. Nxc4
{[%clk 01:28:21]} {[%emt 00:02:18]} c5 {[%clk 01:14:28]} {[%emt 00:02:04]} 10.
Qf3 {[%clk 01:10:03]} {[%emt 00:18:46]} Nbd7 {[%clk 01:11:58]} {[%emt
00:03:00]} 11. a3 {[%clk 01:06:48]} {[%emt 00:03:45]} Bxc3 {[%clk 00:56:53]}
{[%emt 00:15:36]} 12. bxc3 {[%clk 01:07:14]} {[%emt 00:00:04]} e5 {[%clk
00:56:52]} {[%emt 00:00:31]} 13. dxe5 {[%clk 00:59:12]} {[%emt 00:08:32]} Bxc4
{[%clk 00:57:14]} {[%emt 00:00:08]} 14. Bxc4 {[%clk 00:59:35]} {[%emt
00:00:07]} Nxe5 {[%clk 00:57:40]} {[%emt 00:00:03]} 15. Qe2 {[%clk 00:59:58]}
{[%emt 00:00:06]} Ne4 {[%clk 00:53:59]} {[%emt 00:04:11]} 16. Ba6 {[%clk
00:55:00]} {[%emt 00:05:29]} c4 {[%clk 00:41:59]} {[%emt 00:12:30]} 17. Bxc4
{[%clk 00:22:33]} {[%emt 00:32:56]} Qc7 {[%clk 00:40:17]} {[%emt 00:02:13]} 18.
Ba6 {[%clk 00:22:32]} {[%emt 00:00:32]} Rad8 {[%clk 00:38:16]} {[%emt
00:02:30]} 19. f3 {[%clk 00:22:13]} {[%emt 00:00:48]} Nc5 {[%clk 00:35:53]}
{[%emt 00:02:54]} 20. e4 {[%clk 00:21:10]} {[%emt 00:01:33]} Nxa6 {[%clk
00:31:26]} {[%emt 00:04:57]} 21. Qxa6 {[%clk 00:21:36]} {[%emt 00:00:04]} Qc5+
{[%clk 00:31:44]} {[%emt 00:00:12]} 22. Kh1 {[%clk 00:21:58]} {[%emt 00:00:08]}
Nd3 {[%clk 00:31:39]} {[%emt 00:00:35]} 23. h3 {[%clk 00:19:50]} {[%emt
00:02:37]} Nf2+ {[%clk 00:22:08]} {[%emt 00:10:02]} 24. Kh2 {[%clk 00:20:14]}
{[%emt 00:00:06]} Qe5+ {[%clk 00:22:20]} {[%emt 00:00:18]} 25. g3 {[%clk
00:15:35]} {[%emt 00:05:09]} Qxc3 {[%clk 00:21:08]} {[%emt 00:01:42]} 26. Ra2
{[%clk 00:15:59]} {[%emt 00:00:04]} Nd1 {[%clk 00:19:42]} {[%emt 00:01:57]} 27.
Bg5 {[%clk 00:11:28]} {[%emt 00:05:01]} Rd3 {[%clk 00:17:57]} {[%emt 00:02:16]}
28. Qa4 {[%clk 00:11:26]} {[%emt 00:00:31]} Rxf3 {[%clk 00:08:12]} {[%emt
00:10:15]} 29. Qxd1 {[%clk 00:11:02]} {[%emt 00:00:54]} Rxg3 {[%clk 00:08:35]}
{[%emt 00:00:08]} 30. Bf4 {[%clk 00:11:11]} {[%emt 00:00:21]} Rxh3+ {[%clk
00:08:07]} {[%emt 00:00:58]} 31. Kg2 {[%clk 00:11:25]} {[%emt 00:00:16]} Rd3
{[%clk 00:08:05]} {[%emt 00:00:32]} 32. Qg4 {[%clk 00:08:06]} {[%emt 00:03:49]}
Qc6 {[%clk 00:07:42]} {[%emt 00:00:54]} 33. Be5 {[%clk 00:06:01]} {[%emt
00:02:34]} f6 {[%clk 00:07:35]} {[%emt 00:00:37]} 34. Raf2 {[%clk 00:05:33]}
{[%emt 00:00:58]} h5 {[%clk 00:04:53]} {[%emt 00:03:11]} 35. Qg6 {[%clk
00:04:33]} {[%emt 00:01:30]} Qe6 {[%clk 00:04:26]} {[%emt 00:00:58]} 36. Bh2
{[%clk 00:04:00]} {[%emt 00:01:02]} Rxa3 {[%clk 00:04:05]} {[%emt 00:00:52]} 37.
e5 {[%clk 00:03:35]} {[%emt 00:00:55]} Qh3+ {[%clk 00:03:21]} {[%emt 00:01:14]}
38. Kg1 {[%clk 00:03:49]} {[%emt 00:00:17]} Ra4 {[%clk 00:02:53]} {[%emt
00:00:59]} 39. Rg2 {[%clk 00:02:28]} {[%emt 00:01:50]} Rg4 {[%clk 00:02:18]}
{[%emt 00:01:05]} 40. Rxg4 {[%clk 00:32:53]} {[%emt 00:00:05]} Qxg4+ {[%clk
00:32:09]} {[%emt 00:00:39]} 41. Qxg4 {[%clk 00:33:18]} {[%emt 00:00:05]} hxg4
{[%clk 00:32:37]} {[%emt 00:00:03]} 42. e6 {[%clk 00:31:41]} {[%emt 00:02:07]}
Re8 {[%clk 00:31:07]} {[%emt 00:02:00]} 43. Re1 {[%clk 00:32:03]} {[%emt
00:00:07]} g5 {[%clk 00:29:55]} {[%emt 00:01:42]} 44. Bd6 {[%clk 00:31:13]}
{[%emt 00:01:20]} f5 {[%clk 00:26:40]} {[%emt 00:03:46]} 45. Re5 {[%clk
00:26:48]} {[%emt 00:04:54]} Kg7 {[%clk 00:26:26]} {[%emt 00:00:45]} 46. Rxf5
{[%clk 00:19:49]} {[%emt 00:07:29]} Rxe6 {[%clk 00:26:52]} {[%emt 00:00:04]} 47.
Rxg5+ {[%clk 00:20:07]} {[%emt 00:00:12]} Kf6 {[%clk 00:26:11]} {[%emt
00:01:11]} 48. Rd5 {[%clk 00:20:30]} {[%emt 00:00:06]} a6 {[%clk 00:18:44]}
{[%emt 00:07:57]} 49. Kf2 {[%clk 00:17:00]} {[%emt 00:03:59]} b5 {[%clk
00:19:04]} {[%emt 00:00:11]} 50. Bb4 {[%clk 00:16:47]} {[%emt 00:00:42]} Re4
{[%clk 00:18:22]} {[%emt 00:01:12]} 51. Ba5 {[%clk 00:15:58]} {[%emt 00:01:19]}
Ke6 {[%clk 00:17:57]} {[%emt 00:00:55]} 52. Rg5 {[%clk 00:16:08]} {[%emt
00:00:20]} Kf6 {[%clk 00:14:10]} {[%emt 00:04:18]} 53. Rc5 {[%clk 00:14:01]}
{[%emt 00:02:37]} Rc4 {[%clk 00:12:58]} {[%emt 00:01:42]} 54. Rh5 {[%clk
00:13:01]} {[%emt 00:01:29]} Ra4 {[%clk 00:12:18]} {[%emt 00:01:11]} 55. Rh6+
{[%clk 00:13:11]} {[%emt 00:00:20]} Kf5 {[%clk 00:12:16]} {[%emt 00:00:32]} 56.
Rxa6 {[%clk 00:13:33]} {[%emt 00:00:09]} Ra2+ {[%clk 00:11:50]} {[%emt
00:00:56]} 57. Kg3 {[%clk 00:12:36]} {[%emt 00:01:26]} Ra3+ {[%clk 00:12:16]}
{[%emt 00:00:05]} 58. Kg2 {[%clk 00:12:52]} {[%emt 00:00:14]} Ra2+ {[%clk
00:12:43]} {[%emt 00:00:04]} 1/2-1/2